fUSD/lending_fUSD_20260510
["ID","MTS","AMOUNT","RATE_DAILY","PERIOD"]
[421976669,1778398151000,-974.0,0.00040822,60]
[421976668,1778398151000,-974.0,0.00040822,60]
[421976674,1778398151000,-500.0,0.00040822,60]
[421976690,1778398152000,-989.09998628,0.00040822,60]
[421976694,1778398152000,-543.0,0.00041124,30]
[421976695,1778398152000,-551.0,0.00041124,30]
[421976692,1778398152000,-1561.0,0.00041096,120]
[421976691,1778398152000,-150.0,0.00040822,60]
[421976687,1778398152000,-974.0,0.00040822,60]
[421976693,1778398152000,-543.0,0.00041124,30]
[421976689,1778398152000,-974.0,0.00040822,60]
[421976686,1778398152000,-974.0,0.00040822,60]
[421976684,1778398152000,-500.0,0.00040822,60]
[421976685,1778398152000,-530.85034362,0.00040822,60]
[421976683,1778398152000,-500.0,0.00040822,60]
[421976688,1778398152000,-974.0,0.00040822,60]
[421976696,1778398152000,-548.0,0.00041124,30]
[421976711,1778398152000,-1561.0,0.00041918,120]
[421976698,1778398152000,-541.0,0.00041124,30]
[421976697,1778398152000,-537.0,0.00041124,30]
[421976712,1778398152000,-163.78,0.00041987,30]
[421976710,1778398152000,-225.612499,0.000419,70]
[421976708,1778398152000,-231.663414,0.000417,70]
[421976707,1778398152000,-550.0,0.00041644,120]
[421976704,1778398152000,-1561.0,0.00041644,120]
[421976709,1778398152000,-800.0,0.00041726,120]
[421976706,1778398152000,-227.0,0.00041644,120]
[421976703,1778398152000,-242.416428,0.00041643,64]
[421976702,1778398152000,-1561.0,0.0004137,120]
[421976701,1778398152000,-173.26,0.0004125,120]
[421976700,1778398152000,-800.0,0.00041178,120]
[421976699,1778398152000,-550.0,0.00041124,30]
[421976705,1778398152000,-152.0,0.00041644,120]
[421976721,1778398153000,-591.753606,0.00041996,120]
[421976726,1778398153000,-368.395717,0.00041996,120]
[421976727,1778398153000,-368.395717,0.00041996,120]
[421976725,1778398153000,-264.132818,0.00041996,120]
[421976724,1778398153000,-151.0,0.00041996,120]
[421976723,1778398153000,-151.0,0.00041996,120]
[421976720,1778398153000,-591.753606,0.00041996,120]
[421976714,1778398153000,-162.349892,0.00041996,120]
[421976719,1778398153000,-591.753606,0.00041996,120]
[421976717,1778398153000,-162.349892,0.00041996,120]
[421976718,1778398153000,-591.753606,0.00041996,120]
[421976716,1778398153000,-162.349892,0.00041996,120]
[421976715,1778398153000,-162.349892,0.00041996,120]
[421976713,1778398153000,-151.0,0.00041996,120]
[421976728,1778398153000,-368.395717,0.00041996,120]
[421976722,1778398153000,-151.0,0.00041996,120]
[421976730,1778398153000,-200.0,0.00041999,120]
[421976729,1778398153000,-368.395717,0.00041996,120]
[421976746,1778398153000,-500.0,0.00041999,120]
[421976731,1778398153000,-173.98661166,0.00041999,120]
[421976747,1778398153000,-156.587,0.00041999,120]
[421976745,1778398153000,-200.0,0.00041999,120]
[421976744,1778398153000,-151.0,0.00041999,120]
[421976743,1778398153000,-151.0,0.00041999,120]
[421976741,1778398153000,-200.0,0.00041999,120]
[421976739,1778398153000,-500.0,0.00041999,120]
[421976742,1778398153000,-500.0,0.00041999,120]
[421976738,1778398153000,-200.0,0.00041999,120]
[421976736,1778398153000,-200.0,0.00041999,120]
[421976735,1778398153000,-500.0,0.00041999,120]
[421976737,1778398153000,-500.0,0.00041999,120]
[421976734,1778398153000,-200.0,0.00041999,120]
[421976733,1778398153000,-500.0,0.00041999,120]
[421976732,1778398153000,-200.0,0.00041999,120]
[421976740,1778398153000,-151.0,0.00041999,120]
[421976748,1778398153000,-151.0,0.00041999,120]
[421976758,1778398154000,-151.0,0.00041999,120]
[421976762,1778398154000,-151.0,0.00041999,120]
[421976761,1778398154000,-500.0,0.00041999,120]
[421976760,1778398154000,-174.61919141,0.00041999,120]
[421976759,1778398154000,-339.21956496,0.00041999,120]
[421976757,1778398154000,-500.0,0.00041999,120]
[421976751,1778398154000,-162.380719,0.00041999,120]
[421976755,1778398154000,-200.0,0.00041999,120]
[421976753,1778398154000,-500.0,0.00041999,120]
[421976752,1778398154000,-151.0,0.00041999,120]
[421976750,1778398154000,-200.0,0.00041999,120]
[421976749,1778398154000,-500.0,0.00041999,120]
[421976763,1778398154000,-181.08010149,0.00041999,120]
[421976756,1778398154000,-168.3888056,0.00041999,120]
[421976765,1778398154000,-151.0,0.00041999,120]
[421976754,1778398154000,-151.0,0.00041999,120]
[421976764,1778398154000,-500.0,0.00041999,120]
[421976766,1778398154000,-187.78006525,0.00041999,120]
[421976780,1778398154000,-500.0,0.00041999,120]
[421976779,1778398154000,-500.0,0.00041999,120]
[421976778,1778398154000,-151.0,0.00041999,120]
[421976777,1778398154000,-500.0,0.00041999,120]
[421976776,1778398154000,-151.0,0.00041999,120]
[421976774,1778398154000,-500.0,0.00041999,120]
[421976775,1778398154000,-500.0,0.00041999,120]
[421976772,1778398154000,-500.0,0.00041999,120]
[421976773,1778398154000,-151.0,0.00041999,120]
[421976770,1778398154000,-500.0,0.00041999,120]
[421976768,1778398154000,-151.0,0.00041999,120]
[421976769,1778398154000,-200.84689424,0.00041999,120]
[421976767,1778398154000,-500.0,0.00041999,120]
[421976771,1778398154000,-151.0,0.00041999,120]
[421976790,1778398155000,-500.0,0.00041999,120]
[421976793,1778398155000,-151.0,0.00041999,120]
[421976792,1778398155000,-1107.63007,0.00041999,120]
[421976789,1778398155000,-151.0,0.00041999,120]
[421976791,1778398155000,-500.0,0.00041999,120]
[421976787,1778398155000,-500.0,0.00041999,120]
[421976781,1778398155000,-151.0,0.00041999,120]
[421976788,1778398155000,-1068.11,0.00041999,120]
[421976785,1778398155000,-151.0,0.00041999,120]
[421976784,1778398155000,-1030.0,0.00041999,120]
[421976783,1778398155000,-500.0,0.00041999,120]
[421976782,1778398155000,-500.0,0.00041999,120]
[421976794,1778398155000,-500.0,0.00041999,120]
[421976786,1778398155000,-500.0,0.00041999,120]
[421976795,1778398155000,-500.0,0.00041999,120]
[421976801,1778398155000,-500.0,0.00041999,120]
[421976797,1778398155000,-151.0,0.00041999,120]
[421976810,1778398155000,-1377.42282659,0.00041999,120]
[421976811,1778398155000,-500.0,0.00041999,120]
[421976809,1778398155000,-500.0,0.00041999,120]
[421976808,1778398155000,-181.81415577,0.00041999,120]
[421976796,1778398155000,-1148.61238259,0.00041999,120]
[421976806,1778398155000,-500.0,0.00041999,120]
[421976807,1778398155000,-1328.27659266,0.00041999,120]
[421976804,1778398155000,-500.0,0.00041999,120]
[421976803,1778398155000,-151.0,0.00041999,120]
[421976802,1778398155000,-1235.18214925,0.00041999,120]
[421976800,1778398155000,-151.0,0.00041999,120]
[421976799,1778398155000,-1191.11104075,0.00041999,120]
[421976798,1778398155000,-500.0,0.00041999,120]
[421976805,1778398155000,-1280.88388878,0.00041999,120]
[421976824,1778398156000,-500.0,0.00041999,120]
[421976822,1778398156000,-151.0,0.00041999,120]
[421976820,1778398156000,-500.0,0.00041999,120]
[421976821,1778398156000,-500.0,0.00041999,120]
[421976819,1778398156000,-151.0,0.00041999,120]
[421976825,1778398156000,-151.0,0.00041999,120]
[421976817,1778398156000,-500.0,0.00041999,120]
[421976814,1778398156000,-1481.23780761,0.00041999,120]
[421976815,1778398156000,-500.0,0.00041999,120]
[421976813,1778398156000,-500.0,0.00041999,120]
[421976812,1778398156000,-1428.38747117,0.00041999,120]
[421976818,1778398156000,-500.0,0.00041999,120]
[421976823,1778398156000,-500.0,0.00041999,120]
[421976816,1778398156000,-500.0,0.00041999,120]
[421976826,1778398156000,-500.0,0.00041999,120]
[421976827,1778398156000,-151.0,0.00041999,120]
[421976840,1778398156000,-151.0,0.00041999,120]
[421976839,1778398156000,-642.94,0.00041999,120]
[421976838,1778398156000,-500.0,0.00041999,120]
[421976835,1778398156000,-2069.52935704,0.00041999,120]
[421976836,1778398156000,-620.0,0.00041999,120]
[421976837,1778398156000,-151.0,0.00041999,120]
[421976833,1778398156000,-151.0,0.00041999,120]
[421976832,1778398156000,-500.0,0.00041999,120]
[421976831,1778398156000,-151.0,0.00041999,120]
[421976829,1778398156000,-151.0,0.00041999,120]
[421976830,1778398156000,-500.0,0.00041999,120]
[421976828,1778398156000,-500.0,0.00041999,120]
[421976834,1778398156000,-500.0,0.00041999,120]
[421976850,1778398157000,-151.0,0.00041999,120]
[421976853,1778398157000,-220.0,0.00041999,120]
[421976855,1778398157000,-152.0,0.00041999,120]
[421976852,1778398157000,-220.0,0.00041999,120]
[421976851,1778398157000,-220.0,0.00041999,120]
[421976849,1778398157000,-220.0,0.00041999,120]
[421976848,1778398157000,-743.50770149,0.00041999,120]
[421976841,1778398157000,-196.36914245,0.00041999,120]
[421976846,1778398157000,-716.97946142,0.00041999,120]
[421976845,1778398157000,-151.0,0.00041999,120]
[421976843,1778398157000,-151.0,0.00041999,120]
[421976842,1778398157000,-666.72878,0.00041999,120]
[421976844,1778398157000,-691.39774486,0.00041999,120]
[421976854,1778398157000,-346.55572793,0.00041999,120]
[421976847,1778398157000,-151.0,0.00041999,120]
[421976856,1778398157000,-151.0,0.00041999,120]
[421976857,1778398157000,-152.0,0.00041999,120]
[421976858,1778398157000,-156.587,0.00041999,120]
[421976874,1778398157000,-151.0,0.00041999,120]
[421976872,1778398157000,-152.0,0.00041999,120]
[421976870,1778398157000,-152.0,0.00041999,120]
[421976871,1778398157000,-203.12488371,0.00041999,120]
[421976869,1778398157000,-194.72792766,0.00041999,120]
[421976868,1778398157000,-152.0,0.00041999,120]
[421976867,1778398157000,-187.78006525,0.00041999,120]
[421976873,1778398157000,-164.07213881,0.00041999,120]
[421976864,1778398157000,-152.0,0.00041999,120]
[421976866,1778398157000,-152.0,0.00041999,120]
[421976861,1778398157000,-152.0,0.00041999,120]
[421976860,1778398157000,-152.0,0.00041999,120]
[421976859,1778398157000,-162.380719,0.00041999,120]
[421976863,1778398157000,-174.61919141,0.00041999,120]
[421976865,1778398157000,-181.08010149,0.00041999,120]
[421976862,1778398157000,-168.3888056,0.00041999,120]
[421976886,1778398158000,-294.68009991,0.00041999,120]
[421976887,1778398158000,-537.6845,0.00041999,120]
[421976885,1778398158000,-1672.7364795,0.00041999,30]
[421976883,1778398158000,-518.5,0.00041999,120]
[421976884,1778398158000,-151.0,0.00041999,120]
[421976882,1778398158000,-1613.0535,0.00041999,30]
[421976880,1778398158000,-500.0,0.00041999,120]
[421976879,1778398158000,-1555.5,0.00041999,30]
[421976877,1778398158000,-1500.0,0.00041999,30]
[421976878,1778398158000,-151.0,0.00041999,120]
[421976876,1778398158000,-151.0,0.00041999,120]
[421976875,1778398158000,-151.0,0.00041999,120]
[421976888,1778398158000,-1734.62772924,0.00041999,30]
[421976881,1778398158000,-151.0,0.00041999,120]
[421976889,1778398158000,-557.5788265,0.00041999,120]
[421976902,1778398158000,-1036105.66,0.00042,120]
[421976891,1778398158000,-578.20924308,0.00041999,120]
[421976890,1778398158000,-1798.80895522,0.00041999,30]
[421976906,1778398158000,-1000000.0,0.00042,120]
[421976905,1778398158000,-1000000.0,0.00042,120]
[421976903,1778398158000,-1000000.0,0.00042,120]
[421976901,1778398158000,-1000000.0,0.00042,120]
[421976899,1778398158000,-931618.57414518,0.00042,120]
[421976900,1778398158000,-1000000.0,0.00042,120]
[421976904,1778398158000,-1000000.0,0.00042,120]
[421976897,1778398158000,-10000.0,0.00041999,120]
[421976896,1778398158000,-302.44266069,0.00041999,120]
[421976895,1778398158000,-260.287,0.00041999,120]
[421976892,1778398158000,-703.88168269,0.00041999,30]
[421976894,1778398158000,-251.0,0.00041999,120]
[421976893,1778398158000,-655.23681377,0.00041999,120]
[421976898,1778398158000,-242.5693457,0.00041999,120]
[421976914,1778398159000,-1000000.0,0.00042,120]
[421976907,1778398159000,-1000000.0,0.00042,120]
[421976908,1778398159000,-1000000.0,0.00042,120]
[421976909,1778398159000,-1000000.0,0.00042,120]
[421976910,1778398159000,-1000000.0,0.00042,120]
[421976911,1778398159000,-1000000.0,0.00042,120]
[421976912,1778398159000,-301.86660967,0.00042,120]
[421976913,1778398159000,-1000000.0,0.00042,120]
[421976915,1778398159000,-1000000.0,0.00042,120]
[421976921,1778398159000,-1045.82646562,0.00042,120]
[421976917,1778398159000,-1000000.0,0.00042,120]
[421976918,1778398159000,-1184.78413619,0.00042,30]
[421976920,1778398159000,-872.21149206,0.00042,120]
[421976919,1778398159000,-3398.32402344,0.00042,120]
[421976923,1778398159000,-747.339769,0.00042,120]
[421976922,1778398159000,-5000.0,0.00042,43]
[421976924,1778398159000,-1000.0,0.00042,120]
[421976925,1778398159000,-876260.6194306,0.00042,120]
[421976916,1778398159000,-1000000.0,0.00042,120]
[421976927,1778398223000,-250.0,0.00010555,2]
[421976926,1778398223000,-1329.01437532,0.000105,2]
[421976928,1778398223000,-442.82024936,0.00010581,2]
[421976930,1778398223000,-182.60906706,0.00010599,2]
[421976929,1778398223000,-1557.17975064,0.00010581,2]
[421976934,1778398223000,-500.0,0.00010599,2]
[421976933,1778398223000,-164.486,0.00010599,2]
[421976935,1778398223000,-236.27868654,0.00010599,2]
[421976931,1778398223000,-282.04580698,0.00010599,2]
[421976936,1778398223000,-466.90674512,0.00010599,2]
[421976932,1778398223000,-654.16319302,0.00010599,2]
[421976937,1778398224000,-33.09325488,0.00010599,2]
[421976938,1778398224000,-500.0,0.00010599,2]
[421976940,1778398224000,-500.0,0.00010599,2]
[421976941,1778398224000,-488.7413698,0.00010599,2]
[421976947,1778398224000,-335.53599448,0.00010599,2]
[421976939,1778398224000,-500.0,0.00010599,2]
[421976945,1778398224000,-500.0,0.00010599,2]
[421976946,1778398224000,-500.0,0.00010599,2]
[421976943,1778398224000,-11.2586302,0.00010599,2]
[421976948,1778398224000,-164.46400552,0.00010599,2]
[421976949,1778398224000,-500.0,0.00010599,2]
[421976950,1778398224000,-395.08440039,0.00010599,2]
[421976944,1778398224000,-500.0,0.00010599,2]
[421976942,1778398224000,-175.04,0.00010169,2]
[421976955,1778398225000,-500.0,0.00010599,2]
[421976952,1778398225000,-462.28621877,0.00010599,2]
[421976951,1778398225000,-500.0,0.00010599,2]
[421976954,1778398225000,-37.71378123,0.00010599,2]
[421976953,1778398225000,-150.0,0.00010598,2]
[421976957,1778398225000,-500.0,0.00010599,2]
[421976958,1778398225000,-334.12084345,0.00010599,2]
[421976956,1778398225000,-500.0,0.00010599,2]
[421976959,1778398225000,-165.87915655,0.00010599,2]
[421976961,1778398225000,-500.0,0.00010599,2]
[421976962,1778398225000,-495.44563022,0.00010599,2]
[421976963,1778398225000,-360.15914039,0.00010599,2]
[421976964,1778398225000,-139.84085961,0.00010599,2]
[421976965,1778398225000,-500.0,0.00010599,2]
[421976960,1778398225000,-500.35069752,0.00010599,2]
[421976967,1778398226000,-189.17351571,0.00010599,2]
[421976966,1778398226000,-500.0,0.00010599,2]
[421976968,1778398226000,-179.97835443,0.00010599,2]
[421976970,1778398226000,-500.0,0.00010599,2]
[421976969,1778398226000,-500.0,0.00010599,2]
[421976975,1778398226000,-310.23719789,0.00010599,2]
[421976973,1778398226000,-350.96397911,0.00010599,2]
[421976974,1778398226000,-500.0,0.00010599,2]
[421976972,1778398226000,-167.81319832,0.000105,2]
[421976971,1778398226000,-149.03602089,0.00010599,2]
[421976977,1778398227000,-500.0,0.00010599,2]
[421976976,1778398227000,-189.76280211,0.00010599,2]
[421976979,1778398227000,-139.25157321,0.00010599,2]
[421976978,1778398227000,-500.0,0.00010599,2]
[421976981,1778398227000,-500.0,0.00010599,2]
[421976980,1778398227000,-360.74842679,0.00010599,2]
[421976982,1778398227000,-468.26594853,0.00010599,2]
[421976983,1778398227000,-31.73405147,0.00010599,2]
[421976986,1778398227000,-297.28032385,0.00010599,2]
[421976984,1778398227000,-500.0,0.00010599,2]
[421976987,1778398227000,-202.71967615,0.00010599,2]
[421976988,1778398227000,-500.0,0.00010599,2]
[421976990,1778398227000,-126.29469917,0.00010599,2]
[421976989,1778398227000,-500.0,0.00010599,2]
[421976992,1778398227000,-500.0,0.00010599,2]
[421976991,1778398227000,-373.70530083,0.00010599,2]
[421976993,1778398227000,-455.30907449,0.00010599,2]
[421976985,1778398227000,-500.0,0.00010599,2]
[421976995,1778398228000,-1329.01437532,0.000105,2]
[421976994,1778398228000,159.93,8.14e-05,2]
[421976996,1778398228000,-163.34852646,0.000105,2]
[421976997,1778398228000,-3507.63709822,0.000105,2]
[421976998,1778398228000,-44.69092551,0.00010599,2]
[421977001,1778398228000,-500.0,0.00010599,2]
[421977000,1778398228000,-500.0,0.00010599,2]
[421977002,1778398228000,-500.0,0.00010599,2]
[421977003,1778398228000,-77.14166168,0.00010599,2]
[421976999,1778398228000,-500.0,0.00010599,2]
[421977009,1778398229000,-182.62703192,0.00010599,2]
[421977004,1778398229000,-234.30365984,0.00010599,2]
[421977005,1778398229000,-188.55467848,0.00010599,2]
[421977006,1778398229000,-200.00000001,0.00010599,2]
[421977007,1778398229000,-500.0,0.00010599,2]
[421977008,1778398229000,-440.45969683,0.00010599,2]
[421977010,1778398229000,-500.0,0.00010599,2]
[421977013,1778398229000,-1329.01437532,0.000106,2]
[421977012,1778398229000,-23491.50435545,0.000106,2]
[421977014,1778398229000,-200.0,0.00010125,2]
[421977015,1778398229000,-1129.01437532,0.000106,2]
[421977016,1778398229000,-1329.01437532,0.000106,2]
[421977017,1778398229000,-424.03,0.00026965,30]
[421977018,1778398229000,-216.26,0.00026965,30]
[421977011,1778398229000,-163.32,0.00010599,2]
[421977031,1778398230000,-152.62418559,0.000395,30]
[421977027,1778398230000,-282.69,0.00038042,30]
[421977029,1778398230000,-180.66,0.00039269,30]
[421977028,1778398230000,-151.76,0.00038661,30]
[421977025,1778398230000,-282.69,0.00035367,30]
[421977026,1778398230000,-151.76,0.00035869,30]
[421977023,1778398230000,-151.76,0.00033076,30]
[421977022,1778398230000,-282.69,0.00032691,30]
[421977021,1778398230000,-216.26,0.00030425,30]
[421977019,1778398230000,-282.69,0.00030015,30]
[421977020,1778398230000,-151.76,0.00030283,30]
[421977030,1778398230000,-152.62418559,0.000395,30]
[421977024,1778398230000,-216.26,0.00033886,30]
[421977032,1778398230000,-1491.64,0.0004029,60]
[421977043,1778398230000,-500000.0,0.00042,30]
[421977034,1778398230000,-151.76,0.00041454,30]
[421977047,1778398230000,-832657.82,0.00042,120]
[421977046,1778398230000,-200.0,0.00042,120]
[421977044,1778398230000,-459.0,0.00042,120]
[421977045,1778398230000,-1119.0,0.00042,30]
[421977048,1778398230000,-1000.0,0.00042,120]
[421977042,1778398230000,-18694.50347309,0.00042,120]
[421977033,1778398230000,-282.69,0.00040718,30]
[421977040,1778398230000,-1000000.0,0.00042,120]
[421977039,1778398230000,-600.0,0.00042,120]
[421977038,1778398230000,-500.0,0.00042,45]
[421977037,1778398230000,-701084.1205694,0.00042,120]
[421977036,1778398230000,-50000.0,0.00041999,70]
[421977035,1778398230000,-150.0,0.00041652,120]
[421977041,1778398230000,-151.9872294,0.00042,120]
[421977062,1778398231000,-151.0,0.00042,30]
[421977057,1778398231000,-19065.45186916,0.00042,30]
[421977059,1778398231000,-1014176.18,0.00042,120]
[421977058,1778398231000,-19065.45186916,0.00042,30]
[421977056,1778398231000,-19065.45186916,0.00042,30]
[421977055,1778398231000,-2500.0,0.00042,120]
[421977051,1778398231000,-1000.0,0.00042,120]
[421977053,1778398231000,-1000316.0,0.00042,120]
[421977052,1778398231000,-50000.0,0.00042,120]
[421977049,1778398231000,-10000.0,0.00042,120]
[421977050,1778398231000,-50000.0,0.00042,120]
[421977060,1778398231000,-151.0,0.00042,30]
[421977054,1778398231000,-1449.97607698,0.00042,120]
[421977061,1778398231000,-523.0,0.00042,120]
[421977064,1778398231000,-151.0,0.00042,30]
[421977063,1778398231000,-151.0,0.00042,30]
[421977080,1778398231000,-151.0,0.00042,120]
[421977079,1778398231000,-151.0,0.00042,120]
[421977077,1778398231000,-151.0,0.00042,120]
[421977076,1778398231000,-151.0,0.00042,120]
[421977078,1778398231000,-198.706052,0.00042,120]
[421977070,1778398231000,-151.0,0.00042,120]
[421977081,1778398231000,-151.0,0.00042,120]
[421977069,1778398231000,-151.0,0.00042,120]
[421977066,1778398231000,-230.43538742,0.00042,30]
[421977068,1778398231000,-151.0,0.00042,120]
[421977067,1778398231000,-151.0,0.00042,120]
[421977065,1778398231000,-151.0,0.00042,30]
[421977073,1778398231000,-151.0,0.00042,120]
[421977093,1778398232000,-151.0,0.00042,120]
[421977091,1778398232000,-151.0,0.00042,120]
[421977092,1778398232000,-151.0,0.00042,120]
[421977088,1778398232000,-151.0,0.00042,120]
[421977090,1778398232000,-151.0,0.00042,120]
[421977089,1778398232000,-151.0,0.00042,120]
[421977085,1778398232000,-156.97555839,0.00042,30]
[421977086,1778398232000,-151.0,0.00042,120]
[421977082,1778398232000,-151.0,0.00042,120]
[421977084,1778398232000,-238.57788094,0.00042,30]
[421977083,1778398232000,-237.2028677,0.00042,30]
[421977095,1778398232000,-153.74,0.00042017,120]
[421977087,1778398232000,-151.0,0.00042,120]
[421977096,1778398232000,-153.93,0.00042027,120]
[421977116,1778398232000,-151.75,0.00042145,120]
[421977097,1778398232000,-151.75,0.00042045,120]
[421977094,1778398232000,-171.727305,0.00042,120]
[421977117,1778398232000,-246.58732372,0.00042191,120]
[421977115,1778398232000,-301.86660967,0.00042139,120]
[421977113,1778398232000,-250.0,0.00042137,118]
[421977111,1778398232000,-153.74,0.00042117,120]
[421977110,1778398232000,-178.82,0.00042111,60]
[421977114,1778398232000,-520.34722443,0.00042137,120]
[421977109,1778398232000,-1000.0,0.000421,120]
[421977108,1778398232000,-150.96,0.00042092,120]
[421977104,1778398232000,-250.0,0.00042082,120]
[421977099,1778398232000,-5369.12693,0.00042082,30]
[421977098,1778398232000,-3025.59759495,0.0004207,30]
[421977112,1778398232000,-153.93,0.00042127,120]
[421977125,1778398233000,-153.93,0.00042227,120]
[421977128,1778398233000,-10750.0,0.0004225,30]
[421977129,1778398233000,-520.34722443,0.00042277,120]
[421977127,1778398233000,-20000.0,0.0004225,120]
[421977126,1778398233000,-151.75,0.00042245,120]
[421977124,1778398233000,-153.83339663,0.00042217,120]
[421977131,1778398233000,-153.93,0.0004229,120]
[421977123,1778398233000,-194.0,0.000422,120]
[421977121,1778398233000,-150.96,0.00042192,120]
[421977119,1778398233000,-413.0,0.00042192,120]
[421977120,1778398233000,-250.0,0.00042192,120]
[421977118,1778398233000,-1561.0,0.00042192,120]
[421977122,1778398233000,-1000.0,0.000422,120]
[421977132,1778398233000,-150.96,0.00042292,120]
[421977130,1778398233000,-301.86660967,0.00042279,120]
[421977134,1778398233000,-2500.0,0.000423,120]
[421977146,1778398233000,-4800.0,0.00042466,30]
[421977147,1778398233000,-265.0,0.00042466,90]
[421977145,1778398233000,-1561.0,0.00042466,120]
[421977144,1778398233000,-151.75,0.00042445,120]
[421977140,1778398233000,-150.96,0.00042392,120]
[421977141,1778398233000,-1000.0,0.000424,120]
[421977143,1778398233000,-153.992,0.00042427,120]
[421977138,1778398233000,-1143.5,0.00042347,120]
[421977139,1778398233000,-150.0,0.00042353,120]
[421977136,1778398233000,-150.0,0.00042335,120]
[421977137,1778398233000,-151.75,0.00042345,120]
[421977133,1778398233000,-1000.0,0.000423,120]
[421977135,1778398233000,-153.93,0.00042327,120]
[421977142,1778398233000,-250.0,0.00042411,120]
[421977154,1778398234000,-2730.32632275,0.000425,120]
[421977159,1778398234000,-937.0,0.000425,120]
[421977158,1778398234000,-938.0,0.000425,120]
[421977156,1778398234000,-2000.0,0.000425,120]
[421977157,1778398234000,-150.0,0.000425,120]
[421977152,1778398234000,-1000.0,0.000425,120]
[421977151,1778398234000,-500.0,0.000425,45]
[421977153,1778398234000,-248513.3373676,0.000425,40]
[421977150,1778398234000,-150.96,0.00042492,120]
[421977149,1778398234000,-158.82992145,0.00042466,120]
[421977148,1778398234000,-158.82992146,0.00042466,120]
[421977160,1778398234000,-823.70493988,0.000425,120]
[421977155,1778398234000,-2000.0,0.000425,120]
[421977162,1778398234000,-150000.0,0.000425,70]
[421977163,1778398234000,-197.42185162,0.000425,45]
[421977161,1778398234000,-150000.0,0.000425,60]
[421977176,1778398234000,-250.0,0.0004263,120]
[421977175,1778398234000,-343.61650397,0.0004263,30]
[421977173,1778398234000,-2500.0,0.000426,120]
[421977174,1778398234000,-13142.3210855,0.000426,120]
[421977171,1778398234000,-1000.0,0.000426,120]
[421977172,1778398234000,-155.0,0.000426,120]
[421977177,1778398234000,-152.0,0.00042644,120]
[421977169,1778398234000,-2237.46,0.00042546,120]
[421977167,1778398234000,-151.75,0.00042545,120]
[421977168,1778398234000,-351.46,0.00042546,120]
[421977165,1778398234000,-50000.0,0.000425,120]
[421977166,1778398234000,-5220.5723945,0.000425,120]
[421977164,1778398234000,-499946.4229,0.000425,60]
[421977170,1778398234000,-150.96,0.00042592,120]
[421977189,1778398235000,-1770.501,0.000427,120]
[421977188,1778398235000,-1770.501,0.000427,120]
[421977186,1778398235000,-150.96,0.00042692,120]
[421977187,1778398235000,-1000.0,0.000427,120]
[421977185,1778398235000,-250.0,0.00042685,120]
[421977184,1778398235000,-153.93,0.0004268,120]
[421977181,1778398235000,-256.11299998,0.00042645,90]
[421977183,1778398235000,-8953.0,0.00042646,120]
[421977179,1778398235000,-550.0,0.00042644,120]
[421977180,1778398235000,-151.75,0.00042645,120]
[421977178,1778398235000,-227.0,0.00042644,120]
[421977190,1778398235000,-1770.5,0.000427,120]
[421977182,1778398235000,-256.11299998,0.00042645,90]